fUSD/lending_fUSD_20250623
["ID","MTS","AMOUNT","RATE_DAILY","PERIOD"]
[367199769,1750698675840,-1254.38,0.00023816,2]
[367199770,1750698675850,-792.37,0.00023816,2]
[367199771,1750698675859,-3998.48,0.00023816,2]
[367199772,1750698675868,-488.38495596,0.00023816,2]
[367199773,1750698675880,-1561.52,0.00023816,2]
[367199774,1750698675889,-6443.202937,0.00023816,2]
[367199775,1750698675898,-1450.98,0.00023816,2]
[367199776,1750698675908,-1020.65,0.00023816,2]
[367199777,1750698675917,-1226.48,0.00023816,2]
[367199778,1750698675926,-927.5,0.00023816,2]
[367199779,1750698676030,-490.0,0.00023816,2]
[367199780,1750698676040,-888.64,0.00023816,2]
[367199781,1750698676049,-1568.0,0.00023816,2]
[367199782,1750698676059,-573.95,0.00023816,2]
[367199783,1750698676069,-1236.22,0.00023816,2]
[367199784,1750698676080,-2086.57,0.00023816,2]
[367199785,1750698676093,-11128.95,0.00023816,2]
[367199786,1750698676103,-3474.170252,0.00023816,2]
[367199787,1750698676113,-578.12,0.00023816,2]
[367199788,1750698676122,-1094.52,0.00023816,2]
[367199789,1750698676132,-1429.33,0.00023816,2]
[367199790,1750698676141,-2550.63,0.00023816,2]
[367199791,1750698676151,-1705.63,0.00023816,2]
[367199792,1750698676161,-1403.27,0.00023816,2]
[367199793,1750698676170,-1000.0,0.00023816,2]
[367199794,1750698676179,-800.49,0.00023816,2]
[367199795,1750698676189,-2306.86,0.00023816,2]
[367199796,1750698676198,-3458.41,0.00023816,2]
[367199797,1750698676208,-573.21,0.00023816,2]
[367199798,1750698676218,-1743.2,0.00023816,2]
[367199799,1750698676228,-14104.896354,0.00023816,2]
[367199800,1750698676238,-10144.14,0.00023816,2]
[367199801,1750698676248,-943.07,0.00023816,2]
[367199802,1750698676258,-943.07,0.00023816,2]
[367199803,1750698676267,-943.07,0.00023816,2]
[367199804,1750698676277,-943.07,0.00023816,2]
[367199805,1750698676286,-943.07,0.00023816,2]
[367199806,1750698676296,-943.14388409,0.00023816,2]
[367199807,1750698676306,-490.0,0.00023816,2]
[367199808,1750698676316,-886.2,0.00023816,2]
[367199809,1750698676325,-2114.89,0.00023816,2]
[367199810,1750698676337,-4042.92,0.00023816,2]
[367199811,1750698676349,-2394.25,0.00023816,2]
[367199812,1750698676358,-731.69,0.00023816,2]
[367199813,1750698676367,-1526.25,0.00023816,2]
[367199814,1750698676377,-1361.84,0.00023816,2]
[367199815,1750698676387,-2763.6,0.00023816,2]
[367199816,1750698676396,-493.15,0.00023816,2]
[367199817,1750698676406,-5649.05,0.00023816,2]
[367199818,1750698676417,-841.69,0.00023816,2]
[367199819,1750698676427,-1021.6,0.00023816,2]
[367199820,1750698676436,-1566.44,0.00023816,2]
[367199821,1750698676446,-1307.2,0.00023816,2]
[367199822,1750698676456,-2220.37,0.00023816,2]
[367199823,1750698676465,-1694.76,0.00023816,2]
[367199824,1750698676475,-1333.28,0.00023816,2]
[367199825,1750698676484,-4728.59,0.00023816,2]
[367199826,1750698676493,-6206.01,0.00023816,2]
[367199827,1750698676502,-1015.78,0.00023816,2]
[367199828,1750698676512,-830.47,0.00023816,2]
[367199829,1750698676520,-1015.78,0.00023816,2]
[367199830,1750698676530,-1015.78,0.00023816,2]
[367199831,1750698676546,-1015.78,0.00023816,2]
[367199832,1750698676556,-1672.77,0.00023816,2]
[367199833,1750698676566,-1015.78,0.00023816,2]
[367199834,1750698676576,-1015.80677208,0.00023816,2]
[367199835,1750698676590,-1243.22,0.00023816,2]
[367199836,1750698676600,-585.45,0.00023816,2]
[367199837,1750698676609,-15974.58,0.00023816,2]
[367199838,1750698676618,-1042.64,0.00023816,2]
[367199839,1750698676627,-1213.26,0.00023816,2]
[367199840,1750698676637,-1057.02,0.00023816,2]
[367199841,1750698676647,-8982.57,0.00023816,2]
[367199842,1750698676657,-261.78383269,0.00023816,2]
[367199843,1750698676666,-3184.98,0.00023816,2]
[367199844,1750698676676,-584.73,0.00023816,2]
[367199845,1750698676685,-955.19,0.00023816,2]
[367199846,1750698676694,-1281.44,0.00023816,2]
[367199847,1750698676704,-1451.39,0.00023816,2]
[367199848,1750698676713,-1334.22,0.00023816,2]
[367199849,1750698676723,-3646.54,0.00023816,2]
[367199850,1750698676733,-2077.8,0.00023816,2]
[367199851,1750698676743,-1126.53,0.00023816,2]
[367199852,1750698676753,-1062.91,0.00023816,2]
[367199853,1750698676763,-1754.15,0.00023816,2]
[367199854,1750698676773,-783.6,0.00023816,2]
[367199855,1750698676783,-1637.16,0.00023816,2]
[367199856,1750698676792,-1986.85,0.00023816,2]
[367199857,1750698676801,-30257.07,0.00023816,2]
[367199858,1750698676810,-425.71318864,0.00023816,2]
[367199859,1750698676822,-4431.79,0.00023816,2]
[367199860,1750698676832,-1908.75,0.00023816,2]
[367199861,1750698676843,-1251.43,0.00023816,2]
[367199862,1750698676852,-1043.13,0.00023816,2]
[367199863,1750698676861,-1449.88,0.00023816,2]
[367199864,1750698676870,-3408.85,0.00023816,2]
[367199865,1750698676878,-1487.37,0.00023816,2]
[367199866,1750698676888,-1477.39,0.00023816,2]
[367199867,1750698676896,-1309.69,0.00023816,2]
[367199868,1750698676907,-1399.23,0.00023816,2]
[367199869,1750698676917,-4978.94,0.00023816,2]
[367199870,1750698676927,-1851.33,0.00023816,2]
[367199871,1750698676936,-1549.84,0.00023816,2]
[367199872,1750698676946,-1569.7,0.00023816,2]
[367199873,1750698676955,-4930.1,0.00023816,2]
[367199874,1750698676965,-2819.42,0.00023816,2]
[367199875,1750698676974,-3120.58,0.00023816,2]
[367199876,1750698676983,-1734.46,0.00023816,2]
[367199877,1750698676992,-1884.11,0.00023816,2]
[367199878,1750698677003,-4270.66,0.00023816,2]
[367199879,1750698677012,-747.75,0.00023816,2]
[367199880,1750698677021,-2881.99,0.00023816,2]
[367199881,1750698677030,-5897.6,0.00023816,2]
[367199882,1750698677039,-1573.74,0.00023816,2]
[367199883,1750698677049,-490.0,0.00023816,2]
[367199884,1750698677058,-1383.69,0.00023816,2]
[367199885,1750698677067,-885.33,0.00023816,2]
[367199886,1750698677081,-1501.78,0.00023816,2]
[367199887,1750698677096,-698.8,0.00023817,2]
[367199888,1750698677106,-669.68,0.00023817,2]
[367199889,1750698677117,-490.0,0.00023817,2]
[367199890,1750698677126,-480.56103054,0.00023817,2]
[367199891,1750698677136,-929.07,0.00023817,2]
[367199892,1750698677145,-490.0,0.00023817,2]
[367199893,1750698677154,-490.0,0.00023817,2]
[367199894,1750698677163,-248.9688355,0.00023817,2]
[367199895,1750698677172,-242.78635105,0.00023817,2]
[367199896,1750698677181,-490.0,0.00023817,2]
[367199897,1750698677189,-1110.49,0.00023817,2]
[367199898,1750698677198,-337.87338665,0.00023817,2]
[367199899,1750698677207,-791.44,0.00023817,2]
[367199900,1750698677216,-490.0,0.00023817,2]
[367199901,1750698677225,-490.0,0.00023817,2]
[367199902,1750698677234,-1147.96,0.00023817,2]
[367199903,1750698677243,-490.0,0.00023817,2]
[367199904,1750698677252,-449.44989991,0.00023817,2]
[367199905,1750698677261,-490.0,0.00023817,2]
[367199906,1750698677271,-490.0,0.00023817,2]
[367199907,1750698677281,-490.0,0.00023817,2]
[367199908,1750698677290,-490.0,0.00023817,2]
[367199909,1750698677299,-920.38,0.00023817,2]
[367199910,1750698677309,-564.09,0.00023817,2]
[367199911,1750698677318,-773.07,0.00023817,2]
[367199912,1750698677327,-772.88,0.00023817,2]
[367199913,1750698677341,-974.05,0.00023817,2]
[367199914,1750698677351,-490.0,0.00023817,2]
[367199915,1750698677360,-490.0,0.00023817,2]
[367199916,1750698677369,-490.0,0.00023817,2]
[367199917,1750698677378,-490.0,0.00023817,2]
[367199918,1750698677387,-563.39,0.00023817,2]
[367199919,1750698677397,-490.0,0.00023817,2]
[367199920,1750698677407,-490.0,0.00023817,2]
[367199921,1750698677416,-490.0,0.00023817,2]
[367199922,1750698677426,-490.0,0.00023817,2]
[367199923,1750698677435,-523.29,0.00023817,2]
[367199924,1750698677445,-490.0,0.00023817,2]
[367199925,1750698677454,-494.29966908,0.00023817,2]
[367199926,1750698677463,-490.0,0.00023817,2]
[367199927,1750698677473,-525.09734163,0.00023817,2]
[367199928,1750698677483,-490.0,0.00023817,2]
[367199929,1750698677493,-1284.85,0.00023817,2]
[367199930,1750698677504,-740.67,0.00023817,2]
[367199931,1750698677513,-596.54,0.00023817,2]
[367199932,1750698677523,-490.0,0.00023817,2]
[367199933,1750698677532,-490.0,0.00023817,2]
[367199934,1750698677541,-679.03,0.00023817,2]
[367199935,1750698677551,-795.0,0.00023817,2]
[367199936,1750698677560,-565.51,0.00023817,2]
[367199937,1750698677570,-490.0,0.00023817,2]
[367199938,1750698677580,-924.56,0.00023817,2]
[367199939,1750698677593,-1608.33,0.00023817,2]
[367199940,1750698677602,-540.42,0.00023817,2]
[367199941,1750698677613,-631.4,0.00023817,2]
[367199942,1750698677622,-1315.78,0.00023817,2]
[367199943,1750698677632,-940.16,0.00023817,2]
[367199944,1750698677642,-836.48,0.00023817,2]
[367199945,1750698677651,-368.16934785,0.00023817,2]
[367199946,1750698677661,-490.0,0.00023817,2]
[367199947,1750698677671,-676.41,0.00023817,2]
[367199948,1750698677681,-490.0,0.00023817,2]
[367199949,1750698677690,-490.0,0.00023817,2]
[367199950,1750698677700,-490.0,0.00023817,2]
[367199951,1750698677709,-490.0,0.00023817,2]
[367199952,1750698677718,-1995.8,0.00023817,2]
[367199953,1750698677728,-490.0,0.00023817,2]
[367199954,1750698677737,-955.43,0.00023817,2]
[367199955,1750698677747,-946.21,0.00023817,2]
[367199956,1750698677757,-221.40168385,0.00023817,2]
[367199957,1750698677767,-490.0,0.00023817,2]
[367199958,1750698677777,-490.0,0.00023817,2]
[367199959,1750698677786,-1199.8,0.00023817,2]
[367199960,1750698677795,-1746.69,0.00023817,2]
[367199961,1750698677806,-1597.4,0.00023817,2]
[367199962,1750698677815,-721.98,0.00023817,2]
[367199963,1750698677825,-490.0,0.00023817,2]
[367199964,1750698677835,-1078.2,0.00023817,2]
[367199965,1750698677845,-1245.27,0.00023817,2]
[367199966,1750698677854,-490.0,0.00023817,2]
[367199967,1750698677864,-516.18,0.00023817,2]
[367199968,1750698677874,-490.0,0.00023817,2]
[367199969,1750698677886,-490.0,0.00023817,2]
[367199970,1750698677895,-990.07,0.00023817,2]
[367199971,1750698677904,-549.99,0.00023817,2]
[367199972,1750698677914,-490.0,0.00023817,2]
[367199973,1750698677923,-752.35,0.00023817,2]
[367199974,1750698677932,-490.0,0.00023817,2]
[367199975,1750698677942,-490.0,0.00023817,2]
[367199976,1750698677951,-1453.03,0.00023817,2]
[367199977,1750698677961,-785.71,0.00023817,2]
[367199978,1750698677971,-742.29,0.00023817,2]
[367199979,1750698677981,-1602.78,0.00023817,2]
[367199980,1750698677991,-856.74,0.00023817,2]
[367199981,1750698678000,-1829.46,0.00023817,2]
[367199982,1750698678011,-500.0,0.00023817,2]
[367199983,1750698678020,-490.0,0.00023817,2]
[367199984,1750698678030,-962.15,0.00023817,2]
[367199985,1750698678040,-847.97,0.00023817,2]
[367199986,1750698678051,-1010.43,0.00023817,2]
[367199987,1750698678061,-490.0,0.00023817,2]
[367199988,1750698678074,-490.0,0.00023817,2]
[367199989,1750698678085,-845.85,0.00023817,2]
[367199990,1750698678096,-490.0,0.00023817,2]
[367199991,1750698678106,-822.97,0.00023817,2]
[367199992,1750698678117,-490.0,0.00023817,2]
[367199993,1750698678128,-490.0,0.00023817,2]
[367199994,1750698678138,-526.85,0.00023817,2]
[367199995,1750698678150,-1459.19,0.00023817,2]
[367199996,1750698678162,-490.0,0.00023817,2]
[367199997,1750698678173,-1910.2,0.00023817,2]
[367199998,1750698678183,-975.14,0.00023817,2]
[367199999,1750698678194,-1090.36,0.00023817,2]
[367200000,1750698678204,-490.0,0.00023817,2]
[367200001,1750698678214,-1700.88,0.00023817,2]
[367200002,1750698678224,-490.0,0.00023817,2]
[367200003,1750698678235,-490.0,0.00023817,2]
[367200004,1750698678245,-661.71,0.00023817,2]
[367200005,1750698678255,-2474.52,0.00023817,2]
[367200006,1750698678265,-1007.33,0.00023817,2]
[367200007,1750698678276,-621.4,0.00023817,2]
[367200008,1750698678286,-490.0,0.00023817,2]
[367200009,1750698678295,-1520.6,0.00023817,2]
[367200010,1750698678306,-604.07,0.00023817,2]
[367200011,1750698678315,-490.0,0.00023817,2]
[367200012,1750698678325,-490.0,0.00023817,2]
[367200013,1750698678336,-515.83,0.00023817,2]
[367200014,1750698678346,-636.82,0.00023817,2]
[367200015,1750698678356,-1671.93,0.00023817,2]
[367200016,1750698678365,-1091.97,0.00023817,2]
[367200017,1750698678376,-500.0,0.00023817,2]
[367200018,1750698678385,-490.0,0.00023817,2]
[367200019,1750698678395,-490.0,0.00023817,2]
[367200020,1750698678404,-1337.29,0.00023817,2]
[367200021,1750698678414,-387.42599616,0.00023817,2]
[367200022,1750698678425,-1057.36,0.00023817,2]
[367200023,1750698678435,-897.65,0.00023817,2]
[367200024,1750698678445,-490.0,0.00023817,2]
[367200025,1750698678455,-1237.82,0.00023817,2]
[367200026,1750698678465,-513.51,0.00023817,2]
[367200027,1750698678476,-628.5,0.00023817,2]
[367200028,1750698678487,-1452.58,0.00023817,2]
[367200029,1750698678497,-156.32713339,0.00023817,2]
[367200030,1750698678507,-2187.25,0.00023817,2]
[367200031,1750698678516,-554.23,0.00023817,2]
[367200032,1750698678526,-541.28,0.00023817,2]
[367200033,1750698678535,-885.64,0.00023817,2]
[367200034,1750698678545,-542.88,0.00023817,2]
[367200035,1750698678555,-838.0,0.00023817,2]
[367200036,1750698678564,-1607.74,0.00023817,2]
[367200037,1750698678574,-2113.25,0.00023817,2]
[367200038,1750698678584,-608.03,0.00023817,2]
[367200039,1750698678596,-1894.29,0.00023817,2]
[367200040,1750698678606,-490.0,0.00023817,2]
[367200041,1750698678616,-490.0,0.00023817,2]
[367200042,1750698678627,-1031.09,0.00023817,2]
[367200043,1750698678637,-490.0,0.00023817,2]
[367200044,1750698678648,-490.0,0.00023817,2]
[367200045,1750698678658,-490.0,0.00023817,2]
[367200046,1750698678668,-360.38,0.00023817,2]
[367200047,1750698678679,-788.91,0.00023817,2]
[367200048,1750698678690,-490.0,0.00023817,2]
[367200049,1750698678700,-490.0,0.00023817,2]
[367200050,1750698678710,-2071.88,0.00023817,2]
[367200051,1750698678720,-1258.85,0.00023817,2]
[367200052,1750698678731,-788.65,0.00023817,2]
[367200053,1750698678741,-490.0,0.00023817,2]
[367200054,1750698678751,-490.0,0.00023817,2]
[367200055,1750698678762,-1574.29,0.00023817,2]
[367200056,1750698678772,-1152.75,0.00023817,2]
[367200057,1750698678782,-1238.42,0.00023817,2]
[367200058,1750698678792,-1608.07,0.00023817,2]
[367200059,1750698678803,-490.51919826,0.00023817,2]
[367200060,1750698678814,-1425.09,0.00023817,2]
[367200061,1750698678825,-490.0,0.00023817,2]
[367200062,1750698678838,-1519.63,0.00023817,2]
[367200063,1750698678850,-666.89,0.00023817,2]
[367200064,1750698678860,-490.0,0.00023817,2]
[367200065,1750698678870,-490.0,0.00023817,2]
[367200066,1750698678880,-585.27,0.00023817,2]
[367200067,1750698678890,-490.0,0.00023817,2]
[367200068,1750698678901,-1335.79,0.00023817,2]
[367200069,1750698678911,-490.0,0.00023817,2]
[367200070,1750698678922,-490.0,0.00023817,2]
[367200071,1750698678931,-1907.04,0.00023817,2]
[367200072,1750698678941,-490.0,0.00023817,2]
[367200073,1750698678951,-1660.38,0.00023817,2]
[367200074,1750698678961,-804.67,0.00023817,2]
[367200075,1750698678971,-490.0,0.00023817,2]
[367200076,1750698678981,-1654.5,0.00023817,2]
[367200077,1750698678991,-1140.14,0.00023817,2]
[367200078,1750698679001,-490.0,0.00023817,2]
[367200079,1750698679010,-490.0,0.00023817,2]
[367200080,1750698679018,-490.0,0.00023817,2]
[367200081,1750698679029,-1832.21,0.00023817,2]
[367200082,1750698679039,-490.0,0.00023817,2]
[367200083,1750698679048,-858.09,0.00023817,2]
[367200084,1750698679058,-660.75,0.00023817,2]
[367200085,1750698679067,-490.0,0.00023817,2]
[367200086,1750698679080,-490.0,0.00023817,2]
[367200087,1750698679091,-1520.18,0.00023817,2]
[367200088,1750698679102,-1435.25,0.00023817,2]
[367200089,1750698679112,-490.0,0.00023817,2]
[367200090,1750698679122,-1338.13,0.00023817,2]
[367200091,1750698679133,-1071.6,0.00023817,2]
[367200092,1750698679142,-500.0,0.00023817,2]
[367200093,1750698679152,-490.0,0.00023817,2]
[367200094,1750698679162,-1193.49,0.00023817,2]
[367200095,1750698679173,-490.0,0.00023817,2]
[367200096,1750698679183,-765.84,0.00023817,2]
[367200097,1750698679193,-490.0,0.00023817,2]
[367200098,1750698679202,-490.0,0.00023817,2]
[367200099,1750698679212,-500.0,0.00023817,2]
[367200100,1750698679223,-490.0,0.00023817,2]
[367200101,1750698679233,-409.97704196,0.00023817,2]
[367200102,1750698679243,-490.0,0.00023817,2]
[367200103,1750698679253,-975.19,0.00023817,2]
[367200104,1750698679264,-1121.14,0.00023817,2]
[367200105,1750698679274,-490.0,0.00023817,2]
[367200106,1750698679285,-721.36,0.00023817,2]
[367200107,1750698679295,-490.0,0.00023817,2]
[367200108,1750698679305,-1496.89,0.00023817,2]
[367200109,1750698679315,-490.0,0.00023817,2]
[367200110,1750698679325,-1850.56,0.00023817,2]
[367200111,1750698679337,-262.28427075,0.00023817,2]
[367200112,1750698679347,-851.87,0.00023817,2]
[367200113,1750698679357,-775.66,0.00023817,2]
[367200114,1750698679368,-508.01,0.00023817,2]
[367200115,1750698679378,-351.63097364,0.00023817,2]
[367200116,1750698679388,-490.0,0.00023817,2]
[367200117,1750698679398,-696.43,0.00023817,2]
[367200118,1750698679409,-490.0,0.00023817,2]
[367200119,1750698679419,-503.51,0.00023817,2]
[367200120,1750698679429,-759.75,0.00023817,2]
[367200121,1750698679439,-719.21,0.00023817,2]
[367200122,1750698679450,-550.96,0.00023817,2]
[367200123,1750698679460,-1736.88,0.00023817,2]
[367200124,1750698679470,-1417.97,0.00023817,2]
[367200125,1750698679481,-490.0,0.00023817,2]
[367200126,1750698679491,-490.0,0.00023818,2]
[367200127,1750698679501,-1272.27,0.00023818,2]
[367200128,1750698679511,-490.0,0.00023818,2]
[367200129,1750698679521,-490.0,0.00023818,2]
[367200130,1750698679531,-490.0,0.00023818,2]
[367200131,1750698679541,-688.42,0.00023818,2]
[367200132,1750698679551,-490.0,0.00023818,2]
[367200133,1750698679561,-490.0,0.00023818,2]
[367200134,1750698679571,-490.0,0.00023818,2]
[367200135,1750698679582,-619.84,0.00023818,2]
[367200136,1750698679798,-338.53282113,0.00023818,2]
[367200137,1750698679809,-490.0,0.00023818,2]
[367200138,1750698679819,-490.0,0.00023818,2]
[367200139,1750698679829,-815.99,0.00023818,2]
[367200140,1750698679843,-490.0,0.00023818,2]
[367200141,1750698679853,-264.23105011,0.00023818,2]
[367200142,1750698679863,-588.92870351,0.00023818,2]
[367200143,1750698679872,-490.0,0.00023818,2]
[367200144,1750698679882,-490.0,0.00023818,2]
[367200145,1750698679891,-194.47185487,0.00023818,2]
[367200146,1750698679901,-490.0,0.00023818,2]
[367200147,1750698679910,-490.0,0.00023818,2]
[367200148,1750698679919,-490.0,0.00023818,2]
[367200149,1750698679928,-491.68,0.00023818,2]
[367200150,1750698679938,-490.0,0.00023818,2]
[367200151,1750698679947,-490.0,0.00023818,2]
[367200152,1750698679956,-490.0,0.00023818,2]
[367200153,1750698679966,-490.0,0.00023818,2]
[367200154,1750698679975,-982.4,0.00023818,2]
[367200155,1750698679984,-490.0,0.00023818,2]
[367200156,1750698679994,-683.19,0.00023818,2]
[367200157,1750698680003,-515.5300264,0.00023818,2]
[367200158,1750698680012,-490.0,0.00023818,2]
[367200159,1750698680022,-1734.24,0.00023818,2]
[367200160,1750698680031,-2397.5,0.00023818,2]
[367200161,1750698680040,-665.68,0.00023818,2]
[367200162,1750698680051,-1068.53,0.00023818,2]
[367200163,1750698680061,-963.54,0.00023818,2]
[367200164,1750698680075,-490.0,0.00023818,2]
[367200165,1750698680089,-1365.65,0.00023818,2]
[367200166,1750698680100,-1251.07,0.00023818,2]
[367200167,1750698680109,-1403.96,0.00023818,2]
[367200168,1750698680121,-851.44,0.00023818,2]
[367200169,1750698680131,-500.0,0.00023818,2]
[367200170,1750698680140,-500.0,0.00023818,2]
[367200171,1750698680150,-537.5,0.00023818,2]
[367200172,1750698680162,-500.0,0.00023818,2]
[367200173,1750698680171,-500.0,0.00023818,2]
[367200174,1750698680181,-608.03,0.00023818,2]
[367200175,1750698680190,-1608.07,0.00023818,2]
[367200176,1750698680199,-1608.07,0.00023818,2]
[367200177,1750698680209,-1435.25,0.00023818,2]
[367200178,1750698680220,-1435.25,0.00023818,2]
[367200179,1750698680229,-500.0,0.00023818,2]
[367200180,1750698680239,-394.92148722,0.00023818,2]
[367200181,1750698680250,-608.03,0.00023819,2]
[367200182,1750698680259,-2356.48532027,0.0002382,2]
[367200183,1750698680269,-1000.0,0.00023821,2]
[367200184,1750698680278,-1000.0,0.00023821,2]
[367200185,1750698680288,-500.0,0.00023821,2]
[367200186,1750698680297,-1000.0,0.00023821,2]
[367200187,1750698680306,-1000.0,0.00023821,2]
[367200188,1750698680316,-804.33191136,0.00023821,2]
[367200189,1750698680326,-1000.0,0.00023821,2]
[367200190,1750698680337,-843.71857431,0.00023821,2]
[367200191,1750698680347,-328.64414899,0.00023821,2]
[367200192,1750698680356,-1000.0,0.00023821,2]
[367200193,1750698680366,-1000.0,0.00023821,2]
[367200194,1750698680375,-1000.0,0.00023821,2]
[367200195,1750698680384,-1000.0,0.00023821,2]
[367200196,1750698680393,-1000.0,0.00023821,2]
[367200197,1750698680402,-150.0,0.00023826,2]
[367200198,1750698680412,-150.0,0.00023829,2]
[367200199,1750698680421,-150.0,0.00023833,2]
[367200200,1750698680431,-150.0,0.00023835,2]
[367200201,1750698680440,-158.57,0.00023836,2]
[367200202,1750698680450,-217.7822685,0.0002384,2]
[367200203,1750698680460,-150.0,0.00023841,2]
[367200204,1750698680469,-150.0,0.00023866,2]
[367200205,1750698680479,-285.32504675,0.00023867,2]
[367200206,1750698680488,-150.0,0.00023868,2]
[367200207,1750698680497,-168.0,0.00023874,2]
[367200208,1750698680507,-168.0,0.00023883,2]
[367200209,1750698680517,-150.0,0.00023893,2]
[367200210,1750698680527,-300.0,0.000239,8]
[367200211,1750698680537,-200.0,0.00023901,2]
[367200212,1750698680547,-1311.033,0.00023908,5]
[367200213,1750698680557,-200.0,0.00023929,2]
[367200214,1750698680566,-500.0,0.00023931,2]
[367200215,1750698680576,-500.0,0.00023931,2]
[367200216,1750698680586,-1608.07,0.00023931,2]
[367200217,1750698680595,-1435.25,0.00023931,2]
[367200218,1750698680605,-500.0,0.00023932,2]
[367200219,1750698680615,-500.0,0.00023932,2]
[367200220,1750698680624,-150.0,0.00023932,2]
[367200221,1750698680634,-150.32771533,0.00023932,2]
[367200222,1750698680644,-500.0,0.00023932,2]
[367200223,1750698680654,-150.0,0.00023932,2]
[367200224,1750698680663,-150.0,0.00023932,2]
[367200225,1750698680673,-150.0,0.00023932,2]
[367200226,1750698680682,-150.0,0.00023932,2]
[367200227,1750698680692,-500.0,0.00023932,2]
[367200228,1750698680702,-500.0,0.00023932,2]
[367200229,1750698680711,-500.0,0.00023932,2]
[367200230,1750698680721,-150.0,0.00023932,2]
[367200231,1750698680730,-500.0,0.00023932,2]
[367200232,1750698680739,-549.0,0.00023932,2]
[367200233,1750698680749,-150.0,0.00023932,2]
[367200234,1750698680759,-152.42118309,0.00023932,2]
[367200235,1750698680769,-500.0,0.00023932,2]
[367200236,1750698680779,-150.0,0.00023932,2]
[367200237,1750698680788,-500.0,0.00023932,2]
[367200238,1750698680799,-500.0,0.00023932,2]
[367200239,1750698680810,-500.0,0.00023932,2]
[367200240,1750698680820,-500.0,0.00023932,2]
[367200241,1750698680829,-500.0,0.00023932,2]
[367200242,1750698680841,-150.0,0.00023932,2]
[367200243,1750698680850,-500.0,0.00023932,2]
[367200244,1750698680860,-150.0,0.00023932,2]
[367200245,1750698680870,-150.9252672,0.00023932,2]
[367200246,1750698680879,-500.0,0.00023932,2]
[367200247,1750698680889,-500.0,0.00023932,2]
[367200248,1750698680899,-500.0,0.00023932,2]
[367200249,1750698680908,-150.0,0.00023932,2]
[367200250,1750698680917,-500.0,0.00023932,2]
[367200251,1750698680927,-150.0,0.00023932,2]
[367200252,1750698680936,-500.0,0.00023932,2]
[367200253,1750698680946,-500.0,0.00023932,2]
[367200254,1750698680955,-150.0,0.00023932,2]
[367200255,1750698680964,-500.0,0.00023932,2]
[367200256,1750698680974,-150.0,0.00023932,2]
[367200257,1750698680984,-500.0,0.00023932,2]
[367200258,1750698680994,-150.0,0.00023932,2]
[367200259,1750698681003,-150.0,0.00023932,2]
[367200260,1750698681012,-150.0,0.00023932,2]
[367200261,1750698681024,-150.0,0.00023932,2]
[367200262,1750698681034,-150.0,0.00023932,2]
[367200263,1750698681043,-150.0,0.00023932,2]
[367200264,1750698681053,-529.02206399,0.00023934,10]
[367200265,1750698681062,-168.0,0.00023947,2]
[367200266,1750698681075,-500.0,0.00023959,2]
[367200267,1750698681087,-500.0,0.00023959,2]
[367200268,1750698681096,-150.0,0.00023959,2]